Cogmind - Beta 17.1 @@@ ROGUE MODE // 2026.08.27 @ 14:30:32 Player: Minty Result: Destroyed by D-53 Grenadier with Mini Grenade Launcher Performance ------------- Evolutions (0) 0 Regions Visited (2) 400 Robots Destroyed (7) 35 Value Destroyed (85) 85 Prototype IDs (0) 0 Alien Tech Used (0) 0 Bonus (0) 0 TOTAL SCORE: 520 Bonus ------- None Cogmind --------- Core Integrity 0/250 Matter 239/300 Energy 72/100 System Corruption 0% Temperature Cool (0) Movement Rolling (100) Location -10/Mines Parts ------- > --- POWER (1) -------- (None) > --- PROPULSION (2) --- Compact Wheel Compact Wheel > --- UTILITY (2) ------ Small Storage Unit Seismic Detector > --- WEAPON (2) ------- (None) > --- INVENTORY (8) ---- Ion Engine Ion Engine Light Treads Light Treads Assault Rifle Light Cannon Peak State ------------ > --- POWER ------------ Ion Engine > --- PROPULSION ------- Aluminum Leg Aluminum Leg > --- UTILITY ---------- Small Storage Unit Seismic Detector > --- WEAPON ----------- Assault Rifle Assault Rifle > --- INVENTORY -------- Ion Engine Light Treads Light Treads Compact Wheel Compact Wheel Assault Rifle Grenade Launcher [Rating: 7] Favorites ----------- Power Ion Engine Engine Ion Engine Propulsion Aluminum Leg Leg Aluminum Leg Wheel Compact Wheel Utility Small Storage Unit Device Seismic Detector Storage Small Storage Unit Weapon Assault Rifle Ballistic Gun Assault Rifle Launcher Grenade Launcher Build | -11 -10 -10 ------- Run | Yrd Mat Min Slots Evolved . | . . . Power . | . . . Propulsion . | . . . Utility . | . . . Weapon . | . . . Parts Attached 5 | . 1 4 Power . | . . . Engine . | . . . Core . | . . . Reactor . | . . . Propulsion 2 | . . 2 Treads . | . . . Leg . | . . . Wheel 2 | . . 2 Hover . | . . . Flight . | . . . Utility 1 | . 1 . Device 1 | . 1 . Storage . | . . . Processor . | . . . Hackware . | . . . Protection . | . . . Artifact . | . . . Weapon 2 | . . 2 Energy Gun . | . . . Energy Cannon . | . . . Ballistic Gun 1 | . . 1 Ballistic Cannon . | . . . Launcher 1 | . . 1 Special Weapon . | . . . Impact Weapon . | . . . Slashing Weapon . | . . . Piercing Weapon . | . . . Special Melee Weapon . | . . . Unidentified Prototypes . | . . . Parts Lost 5 | . . 5 Power . | . . . Propulsion 2 | . . 2 Utility . | . . . Weapon 3 | . . 3 Highest Loss Streak 5 | . . 5 To Critical Strikes . | . . . Average Backups 7 | 6 6 7 Power 1 | 1 1 1 Propulsion 4 | 4 4 4 Utility . | . . . Weapon 2 | 1 1 2 Tool/Special . | . . . Unused Backups 14 | . 6 8 Power 2 | . 1 1 Propulsion 6 | . 2 4 Utility 1 | . 1 . Weapon 5 | . 2 3 Tool/Special . | . . . Average Slot Usage (%) 97 | . 93 100 Engine 14 | . 14 14 Leg 28 | . 28 28 Device 11 | . 8 14 Storage 14 | . 14 14 Ballistic Gun 27 | . 28 26 Peak Build Rating 7 | 6 7 7 Average Rating 6 | 6 6 6 On Entrance 6 | 6 6 7 Avg Prop Armor Cover (%) . | . . . Naked Turns . | . . . Heaviest Build 16 | 14 15 16 Greatest Support 32 | 20 20 32 Greatest Overweight (x) . | . . . Average Overweight (x) . | . . . Largest Inventory Capacity 8 | 8 8 8 Average Capacity 8 | 8 8 8 Most Carried 8 | 6 7 8 Average Carried 7 | 6 6 7 Final Capacity 8 | 8 8 8 Final Carried 7 | 6 7 6 Class Distribution -------------------- 100% | Mutant Dominant Class ---------------- Mutant | -10/Materials Mutant | -10/Mines Resources | -11 -10 -10 ----------- Run | Yrd Mat Min Matter Collected 270 | 200 . 70 Remotely . | . . . Salvage Created 112 | . . 112 Parts 21 | . . 21 Haulers Intercepted . | . . . Recyclers Shooed . | . . . Parts Field Recycled . | . . . Retrieved Matter . | . . . Parts Self-Destructed . | . . . Prevented . | . . . Parts Restored . | . . . Kills | -11 -10 -10 ------- Run | Yrd Mat Min Combat Hostiles Destroyed 6 | . . 6 Guns 5 | . . 5 AOE 1 | . . 1 Classes Destroyed 3 | . . 3 Worker 1 | . . 1 Swarmer 5 | . . 5 Grunt 1 | . . 1 Best Kill Streak 4 | . . 4 Combat Bots Only 3 | . . 3 Max Kills in Single Turn 3 | . . 3 Gunslinging . | . . . Exploded 1 | . . 1 Melee . | . . . Uniques/NPCs Destroyed . | . . . Combat | -11 -10 -10 -------- Run | Yrd Mat Min Hostile Shots Fired 60 | . . 60 Missed 19 | . . 19 Hits 41 | . . 41 Projectile 41 | . . 41 AOE 9 | . . 9 Damage Taken 740 | . . 740 Core 255 | . . 255 Absorbed by Shields . | . . . Core Remaining (%) 100 | 100 . . Volleys Fired 16 | . 1 15 Largest 2 | . 2 2 Hottest 50 | . 40 50 Shots Fired 32 | . 2 30 Gun 30 | . 2 28 Cannon . | . . . Launcher 2 | . . 2 Special . | . . . Kinetic 30 | . 2 28 Thermal . | . . . Explosive 2 | . . 2 Electromagnetic . | . . . Robot Hit Streak 3 | . . 3 Robot Miss Streak 5 | . 2 5 Penetration Max . | . . . Secondary Targets . | . . . Shots Hit Robots 12 | . . 12 Core Hits 10 | . . 10 Critical Kills . | . . . Critical Parts Destroyed . | . . . Critical Strikes . | . . . Melee Attacks . | . . . Impact . | . . . Slashing . | . . . Piercing . | . . . Sneak Attacks . | . . . Combat Hostiles . | . . . Follow-up Attacks . | . . . Damage Inflicted 290 | . . 290 Guns 136 | . . 136 Cannons . | . . . Explosions 145 | . . 145 Melee . | . . . Ramming 9 | . . 9 Kinetic 136 | . . 136 Thermal . | . . . Explosive 145 | . . 145 Electromagnetic . | . . . Impact . | . . . Slashing . | . . . Piercing . | . . . Highest Corruption . | . . . Average Corruption . | . . . Corruption Purged . | . . . Corruption Blocked . | . . . Overload Shots . | . . . Overflow Damage . | . . . Projectiles . | . . . Explosions . | . . . Melee . | . . . Knockbacks 1 | . . 1 Impact 1 | . . 1 Kinetic . | . . . Secondary . | . . . Self-Inflicted Damage . | . . . Shots . | . . . Rammed . | . . . Targets Rammed 1 | . . 1 Kicked 1 | . . 1 Crushed . | . . . Highest Temperature 12 | . . 12 Average Temperature 6 | . . 6 Received Heat Transfer 108 | . . 108 Siege Activations . | . . . Martial Activations . | . . . Shielding Activations . | . . . Robots Disrupted . | . . . Combat Hostiles . | . . . Robots Corrupted . | . . . Combat Hostiles . | . . . Parts Fried . | . . . Impact Corruptions . | . . . Robots Melted . | . . . Combat Hostiles . | . . . Parts Melted . | . . . Heat Transferred . | . . . Parts Sabotaged . | . . . Parts Stolen . | . . . Parts Stripped . | . . . Power Chain Reactions . | . . . Alert | -11 -10 -10 ------- Run | Yrd Mat Min Maximum Alert Level . | . . . Low Security (%) 100 | 100 100 100 Level 1 . | . . . Level 2 . | . . . Level 3 . | . . . Level 4 . | . . . Level 5 . | . . . High Security . | . . . Max Security . | . . . Peak Influence 61 | . 13 61 Initial . | . . . Average 13 | . 2 20 Influence Increases 154 | . 13 141 Destroy 0b10 Robot/C 120 | . . 120 Destroy 0b10 Robot/NC 5 | . . 5 Destroy Leader 10 | . . 10 Successful Hack 13 | . 13 . Destroy Structure 6 | . . 6 Influence Decreases 143 | . 13 130 Time Decay 93 | . 13 80 Lost Part 50 | . . 50 Squads Dispatched . | . . . Investigation . | . . . Extermination . | . . . Reinforcement . | . . . Assault . | . . . Garrison . | . . . Intercept . | . . . Searches Triggered . | . . . Construction Impeded . | . . . Haulers Reinforced . | . . . Active Scanning Responses . | . . . Cargo Convoy Interrupts . | . . . Stealth | -11 -10 -10 --------- Run | Yrd Mat Min Distress Signals . | . . . Communications Jammed . | . . . Distress Signals . | . . . Times Spotted 12 | . 1 11 Peak Tracking Total 4 | . 1 4 Tactical Retreats . | . . . Traps | -11 -10 -10 ------- Run | Yrd Mat Min Traps Triggered . | . . . Indirectly . | . . . Trap Hack Attempts . | . . . Triggered . | . . . Disarmed . | . . . Reprogrammed . | . . . Reused . | . . . Traps Extracted . | . . . Installed . | . . . Triggered . | . . . Machines | -11 -10 -10 ---------- Run | Yrd Mat Min Machines Disabled . | . . . Max in Single Turn . | . . . Machines Repaired . | . . . Machines Dismantled . | . . . Machines Sabotaged . | . . . Overloaded Fab Kills . | . . . Hacking | -11 -10 -10 --------- Run | Yrd Mat Min Machines Accessed 2 | . 2 . Terminals 2 | . 2 . Fabricators . | . . . Repair Stations . | . . . Recycling Units . | . . . Scanalyzers . | . . . Garrison Access . | . . . Total Hacks 6 | . 6 . Successful 3 | . 3 . Failed 3 | . 3 . Catastrophic . | . . . Database Lockouts . | . . . Manual 5 | . 5 . Terminals 6 | . 6 . Fabricators . | . . . Repair Stations . | . . . Recycling Units . | . . . Scanalyzers . | . . . Garrison Access . | . . . Terminal Hacks 2 | . 2 . Branch Access Points 1 | . 1 . Zone Layout 1 | . 1 . Fabricator Hacks . | . . . Repair Station Hacks . | . . . Recycling Unit Hacks . | . . . Scanalyzer . | . . . Garrison Access Hacks . | . . . Unauthorized Hacks 1 | . 1 . Terminals 1 | . 1 . Botnet 1 | . 1 . Fabricators . | . . . Repair Stations . | . . . Recycling Units . | . . . Scanalyzers . | . . . Garrison Access . | . . . Data Cores Recovered . | . . . Used . | . . . Hacking Detections 2 | . 2 . Full Trace Events . | . . . Feedback Events . | . . . Feedback Blocked . | . . . Robot Schematics Acquired . | . . . Robots Built . | . . . Authchips . | . . . Time . | . . . Total Robot Build Rating . | . . . Part Schematics Acquired . | . . . Parts Built . | . . . Authchips . | . . . Time . | . . . Total Part Build Rating . | . . . Part Studies Acquired . | . . . Parts Repaired . | . . . Time . | . . . Parts Recycled . | . . . Recycled Matter . | . . . Retrieved Matter . | . . . Retrieved Components . | . . . Parts Scanalyzed . | . . . Part Schematics Acquired . | . . . Parts Damaged . | . . . Bothacking | -11 -10 -10 ------------ Run | Yrd Mat Min Used RIF Installer . | . . . Robots Hacked . | . . . Non-combat . | . . . Combat . | . . . Robot Hacks Applied . | . . . Relay Couplers Released . | . . . Fabnet Peak Effective % . | . . . Robots Rewired . | . . . Allies Hacked . | . . . Hacks Repelled . | . . . Allies | -11 -10 -10 -------- Run | Yrd Mat Min Total Allies . | . . . Largest Group . | . . . Highest-Rated Group . | . . . Highest-Rated Ally . | . . . Total Orders . | . . . Ally Attacks . | . . . Total Damage . | . . . Kills . | . . . Allies Corrupted . | . . . Allies Melted . | . . . Intel | -11 -10 -10 ------- Run | Yrd Mat Min Active Infowar (turns) 299 | . 74 225 Seismic 299 | . 74 225 Robot Analysis Total . | . . . Derelict Logs Recovered . | . . . Drone Launches . | . . . Drone Recoveries . | . . . Exploration | -11 -10 -10 ------------- Run | Yrd Mat Min Turns Passed 355 | 3 127 225 Spaces Moved 249 | 3 102 144 Core . | . . . Treads . | . . . Legs 247 | 3 102 142 Wheels 2 | . . 2 Hover . | . . . Flight . | . . . Fastest Speed 100 | 120 120 100 Average Speed 119 | 120 120 119 Slowest Speed 120 | 120 120 120 Overloaded Moves . | . . . Propulsion Burnouts . | . . . Robots Hopped . | . . . Potential Cave-ins 2 | . . 2 Cave-ins Triggered . | . . . Exploration Rate (%) 24 | 1 31 42 Regions Visited 2 Branch Regions 1 Pre-discovered Areas . | . . . Known Exits Taken 1 | . 1 . Unknown Exits Taken 1 | 1 . . Scrap Searched 1 | . . 1 Spaces Dug . | . . . Terrain Destroyed 6 | . . 6 Melee . | . . . Projectile . | . . . AOE 6 | . . 6 Terrain Rammed . | . . . Walls Destroyed . | . . . Machines Disabled . | . . . Actions | -11 -10 -10 --------- Run | Yrd Mat Min Total 272 | 2 104 166 Wait . | . . . Move 247 | 2 101 144 Hop . | . . . Pick Up 2 | . 1 1 Fast Attach 1 | . 1 . Attach 3 | . . 3 Detach 1 | . . 1 Swap 1 | . . 1 Drop . | . . . Fire 16 | . 1 15 Melee . | . . . Ram . | . . . Kick 1 | . . 1 Crush . | . . . Escape Stasis . | . . . Rewire . | . . . Trap . | . . . Miscellaneous . | . . . Route ------- -11/Scrapyard -10/Materials -10/Mines (discovered 1 exit: [*Mat]) History --------- Turn | Location | Event 1 | -11/Scrapyard | Discovered new exit (range 3) 4 | -11/Scrapyard | Entered Materials 27 | -10/Materials | Identified exit to Mines 131 | -10/Materials | Entered Mines 286 | -10/Mines | Discovered new exit (range 13) 306 | -10/Mines | Build established: Mutant 331 | -10/Mines | Assembled infested the area 353 | -10/Mines | Core integrity fell below 50% 355 | -10/Mines | Core integrity fell below 20% 356 | -10/Mines | Destroyed by D-53 Grenadier with Mini Grenade Launcher Last Messages --------------- 00331_ S-10 Pest destroyed. 00337_ U-05 Engineer lays Concrete. 00340_ U-05 Engineer builds a Wall. 00343_ Grenade Launcher destroyed. 00345_ G-34 Mercenary destroyed. 00347_ C-45 Heavy ARC bursts open, deploying its payload. 00347_ D-53 Grenadier unfolds itself. 00350_ U-05 Engineer lays Concrete. 00351_ The unstable cave ceiling collapses. 00351_ U-05 Engineer lays Concrete. 00351_ Aluminum Leg destroyed. 00351_ Assault Rifle destroyed. 00351_ R-06 Scavenger destroyed. 00351_ U-05 Engineer lays Concrete. 00352_ Aluminum Leg destroyed. 00352_ U-05 Engineer lays Concrete. 00353_ U-05 Engineer builds a Wall. 00354_ The unstable cave ceiling collapses. 00354_ U-05 Engineer lays Concrete. 00356_ Assault Rifle destroyed. Map ----- +----------------------------------------------------+ | ####### ### ##??????????????????????????? | | #?## ##??????????????????????????? | | #########??## ##?????????????????????????? | | #########???# ##????????????????????????? | | #???## #######??????????????????? | | ! #????# #??????????????????? | | ######### #???## #### ?????????????? | | ????????#??#??## ##??????#?# ??????????????? | | ????????# #### ##?????????????????????????? | | ????????# ##??????????????????????????? | | ????????# ##??????????#????????????????? | | ????????######## #?????????? # ??????????????? | | ???????????????### #?????????? # #???????????? | | ?????????????????# #?????????? # #???????????? | | ?????????????????# #?????????#$ ???????????? | | ????????????????## ##???????? ????????????? | | ???????????????## ####????? #????????????? | | ???????????????# ###??? ##???????????? | | ???????????????# #??? ##??????????? | | ???????????????# """ #???# ##?????????? | | ??????????????## """ #??## * #?????????? | | ??????????????# """ ##### [%g[ #?????????? | | ?????????????## < ### =###???????? | | ???????????### # # *% ##??????? | | ??????????## ## ## = u= ## ????? | | ??????????# ###### @ ## ???? | | ??????????# ###???# ## ??? | | ??????????###??????# u ??? | | ???????????????????# d ??? | | ???????????????????# ??? | | ???????????????????## # % % ??? | | ????????????????????###### # ??? | | ?????????????????????????### d ??? | | ???????????????????????????## a ### ??? | | ????????????????????????????#### ##????????? | | ???????????????????????????????? #?????????? | | ?????????????????????????????????# #?????????? | | ?????????????????????????????????? #????????? | | ?????????????????????????????????? #????????? | | ??????????????????????????????????? ##????????? | | ??????????????????????????????????? ####?????????? | | ??????????????????????????????????? #????????????? | | ?????????????????????????????????????????????????? | | ?????????????????????????????????????????????????? | | ?????????????????????????????????????????????????? | | ?????????????????????????????????????????????????? | | ?????????????????????????????????????????????????? | | ?????????????????????????????????????????????????? | | ?????????????????????????????????????????????????? | | ?????????????????????????????????????????????????? | +----------------------------------------------------+ Best States ------------- Heat Dissipation 25 Energy Generation 10 Energy Capacity 250 Matter Stores 300 Matter Capacity 300 Sight Range 16 Terrain Scan Density 10 Evasion (%) 55 Item Schematics ----------------- None Robot Schematics ------------------ None Fabricated ------------ Nothing Repaired ---------- Nothing Studied --------- None Alien Tech Used ----------------- None Achievements -------------- None Challenges ------------ None Game ------ Seed ShockSignalFlamer Manual? 0 Play Time 00:04:17 Cumulative 1383.6 hours Start 2026.08.26 @ 22:45:00 End 2026.08.27 @ 14:30:32 Sessions 1 Manual Loads 0 Difficulty Rogue Special Mode None Game No. 1696 Rogue 1412 Adventurer 124 Explorer 160 Win Type - Total 73 Types 55/0/12/4/1/0/0/1/0/0 Lore% 92 Gallery% 84 Achievement% 74 Wizard Run 0 Options --------- Layout 0 ASCII 0 Keyboard 1 Movement Numpad Keybinds 0 Fullscreen 2 Font 18/X11 Map View 76x50 Zoom Use 10% Tactical HUD 1 Map Filters NONE Filters NONE Steam 1 RUN: f9139f40-6ef1-476c-9aad-65e28e20b272